fUST/lending_fUST_20241113
["ID","MTS","AMOUNT","RATE_DAILY","PERIOD"]
[342154663,1731513046111,-1602.99,0.00024657,2]
[342154664,1731513046122,-500.0,0.00024657,2]
[342154665,1731513046132,-4357.13,0.00024657,2]
[342154666,1731513046143,-267.6449253,0.00024657,2]
[342154667,1731513046154,-150.0,0.00024658,2]
[342154668,1731513046165,-151.0,0.00024658,7]
[342154669,1731513046175,-151.0,0.00024658,7]
[342154670,1731513046185,-200.0,0.00024658,2]
[342154671,1731513046195,-200.0,0.00024658,15]
[342154672,1731513046205,-150.112233,0.000247,9]
[342154674,1731513046216,-343.888,0.00024771,8]
[342154676,1731513046226,-58998.18446504,0.000248,2]
[342154678,1731513046236,-6000.0,0.000249,2]
[342154679,1731513046246,-1523.09,0.00024931,2]
[342154680,1731513046256,-500.0,0.00024931,2]
[342154681,1731513046265,-1175.72,0.00024931,2]
[342154682,1731513046276,-921.99,0.00024931,2]
[342154683,1731513046285,-1181.6,0.00024931,2]
[342154684,1731513046295,-510.77,0.00024931,2]
[342154687,1731513046305,-1602.99,0.00024931,2]
[342154689,1731513046315,-500.0,0.00024931,2]
[342154690,1731513046324,-4357.13,0.00024931,2]
[342154691,1731513046339,-300.0,0.00025,2]
[342154692,1731513046350,-270.199999,0.00025,2]
[342154693,1731513046360,-300.0,0.00025,2]
[342154694,1731513046371,-270.2,0.00025,2]
[342154695,1731513046382,-270.2,0.00025,2]
[342154696,1731513046393,-251.0,0.00025,15]
[342154699,1731513046404,-164005.06473348,0.00025,2]
[342154701,1731513046414,-56950.9370326,0.00025,2]
[342154703,1731513046425,-203.43640087,0.00025,2]
[342154706,1731513046436,-165.49956538,0.00025,2]
[342154708,1731513046447,-10364.0,0.00025,2]
[342154712,1731513046458,-509.93665546,0.00025,2]
[342154715,1731513046468,-150.112233,0.00025,17]
[342154717,1731513046480,-151.0,0.00025,7]
[342154719,1731513046490,-151.0,0.00025,7]
[342154722,1731513046500,-500.0,0.00025,17]
[342154725,1731513046511,-660.57499591,0.00025047,2]
[342154728,1731513046521,-187675.91019941,0.0002509,2]
[342154731,1731513046531,-300.0,0.000252,2]
[342154733,1731513046540,-1523.09,0.00025205,2]
[342154735,1731513046550,-285.35530485,0.00025205,2]
[342154737,1731513046560,-1175.72,0.00025205,2]
[342154739,1731513046570,-921.99,0.00025205,2]
[342154741,1731513046584,-1181.6,0.00025205,2]
[342154742,1731513046595,-510.77,0.00025205,2]
[342154744,1731513046606,-1602.99,0.00025205,2]
[342154746,1731513046616,-208.40866064,0.00025205,2]
[342154748,1731513046626,-4357.13,0.00025205,2]
[342154750,1731513046636,-2500.0,0.00025356,2]
[342154752,1731513046646,-295.0,0.00025373,2]
[342154754,1731513046656,-150.112233,0.000254,15]
[342154755,1731513046667,-966759.63229977,0.0002547,2]
[342154756,1731513046677,-153.00752562,0.00025479,2]
[342154757,1731513046687,-1523.18915004,0.00025479,2]
[342154758,1731513046706,-1175.73366528,0.00025479,2]
[342154759,1731513046717,-921.99,0.00025479,2]
[342154760,1731513046727,-1181.68531957,0.00025479,2]
[342154762,1731513046740,-510.77,0.00025479,2]
[342154764,1731513046750,-1602.99,0.00025479,2]
[342154766,1731513046760,-4357.13,0.00025479,2]
[342154768,1731513046769,-300.0,0.000255,2]
[342154770,1731513046779,-500.0,0.00025589,7]
[342154771,1731513046790,-150.112233,0.000257,11]
[342154772,1731513046809,-921.99,0.00025753,2]
[342154773,1731513046823,-510.77,0.00025753,2]
[342154775,1731513046838,-1602.99,0.00025753,2]
[342154777,1731513046848,-4357.13,0.00025753,2]
[342154779,1731513046858,-300.0,0.000258,2]
[342154780,1731513046869,-466.11132926,0.00025808,2]
[342154782,1731513046880,-160.0,0.00025815,3]
[342154784,1731513046895,-168.056,0.0002597,2]
[342154785,1731513046906,-528.46341211,0.00026,2]
[342154786,1731513046918,-150.112233,0.00026,12]
[342154787,1731513046928,-500.0,0.00026,20]
[342154789,1731513046940,-921.99,0.00026027,2]
[342154790,1731513046952,-510.77,0.00026027,2]
[342154791,1731513046963,-1602.99,0.00026027,2]
[342154792,1731513046975,-4357.13,0.00026027,2]
[342154793,1731513046986,-660.57499591,0.00026059,2]
[342154794,1731513046998,-1389.60775,0.00026069,2]
[342154795,1731513047010,-615.0,0.000261,2]
[342154796,1731513047021,-830.477,0.00026144,2]
[342154797,1731513047032,-168.62925,0.00026144,2]
[342154798,1731513047043,-300.0,0.000262,2]
[342154799,1731513047054,-150.112233,0.000263,14]
[342154800,1731513047065,-922.2054892,0.00026301,2]
[342154801,1731513047076,-510.83106083,0.00026301,2]
[342154802,1731513047090,-1603.05218266,0.00026301,2]
[342154803,1731513047101,-4357.16419016,0.00026301,2]
[342154804,1731513047111,-660.0,0.00026384,2]
[342154805,1731513047122,-168.02,0.000264,3]
[342154806,1731513047132,-500.0,0.00026411,7]
[342154807,1731513047143,-300.0,0.000265,2]
[342154808,1731513047154,-152.35,0.000266,31]
[342154809,1731513047165,-152.35,0.000266,31]
[342154810,1731513047175,-150.112233,0.000267,20]
[342154811,1731513047186,-2500.0,0.00026755,2]
[342154812,1731513047197,-300.0,0.000268,2]
[342154813,1731513047208,-850.8,0.00026916,2]
[342154814,1731513047219,-160.0,0.00026925,4]
[342154815,1731513047229,-5790.32914254,0.00027,7]
[342154816,1731513047239,-18337.66216989,0.00027,2]
[342154817,1731513047250,-192.25748038,0.00027,2]
[342154818,1731513047260,-254020.56853041,0.00027,2]
[342154819,1731513047270,-151.0,0.00027,7]
[342154820,1731513047280,-151.0,0.00027,7]
[342154821,1731513047290,-500.0,0.00027,23]
[342154822,1731513047300,-286.473888,0.00027034,7]
[342154823,1731513047310,-286.473888,0.00027034,7]
[342154824,1731513047320,-151.0,0.00027034,7]
[342154825,1731513047332,-151.0000005,0.00027034,7]
[342154826,1731513047343,-151.0,0.0002705,7]
[342154827,1731513047352,-710.175086,0.0002705,7]
[342154828,1731513047362,-710.175086,0.0002705,7]
[342154829,1731513047372,-161.740295,0.0002705,7]
[342154830,1731513047381,-153.371672,0.0002705,7]
[342154831,1731513047391,-161.740295,0.0002705,7]
[342154832,1731513047401,-151.702278,0.0002705,7]
[342154833,1731513047411,-1352.695253,0.0002705,7]
[342154834,1731513047421,-1352.695253,0.0002705,7]
[342154835,1731513047431,-481.576599,0.0002705,7]
[342154836,1731513047440,-481.576599,0.0002705,7]
[342154837,1731513047450,-151.0,0.0002705,7]
[342154838,1731513047459,-1149.612736,0.0002705,7]
[342154839,1731513047469,-151.0,0.0002705,7]
[342154840,1731513047479,-1149.612736,0.0002705,7]
[342154841,1731513047489,-151.0,0.0002705,7]
[342154842,1731513047498,-168.013,0.0002706,5]
[342154843,1731513047508,-294.0,0.00027064,2]
[342154844,1731513047517,-660.57499591,0.00027072,2]
[342154845,1731513047527,-465.05556646,0.00027098,2]
[342154846,1731513047537,-3000.0,0.00027099,2]
[342154847,1731513047547,-886.752863,0.00027099,7]
[342154848,1731513047556,-886.752863,0.00027099,7]
[342154849,1731513047566,-635.791266,0.00027099,7]
[342154850,1731513047575,-635.791266,0.00027099,7]
[342154851,1731513047590,-996.444101,0.00027099,7]
[342154852,1731513047603,-996.444101,0.00027099,7]
[342154853,1731513047613,-1322.580326,0.00027099,7]
[342154854,1731513047622,-1322.580326,0.00027099,7]
[342154855,1731513047631,-300.0,0.000272,2]
[342154856,1731513047640,-500.0,0.00027233,7]
[342154857,1731513047650,-200.0,0.0002724,20]
[342154858,1731513047659,-151.0,0.00027308,7]
[342154859,1731513047670,-389.65558,0.00027308,7]
[342154860,1731513047680,-389.65558,0.00027308,7]
[342154861,1731513047690,-151.0,0.00027308,7]
[342154862,1731513047702,-151.0,0.00027308,7]
[342154863,1731513047713,-151.0,0.00027308,7]
[342154864,1731513047724,-2568.008988,0.00027308,7]
[342154865,1731513047735,-2568.008988,0.00027308,7]
[342154866,1731513047745,-151.0,0.00027315,7]
[342154867,1731513047755,-151.0,0.00027315,7]
[342154868,1731513047764,-151.0,0.00027315,7]
[342154869,1731513047775,-150.0,0.00027315,2]
[342154870,1731513047784,-530.0,0.00027315,2]
[342154871,1731513047794,-1117.0,0.00027315,2]
[342154872,1731513047803,-2389.0,0.00027315,2]
[342154873,1731513047813,-300.0,0.000275,2]
[342154874,1731513047822,-152.35,0.000276,31]
[342154875,1731513047835,-152.35,0.000276,31]
[342154876,1731513047844,-152.35,0.000276,31]
[342154877,1731513047853,-152.35,0.000276,31]
[342154878,1731513047863,-2300.33,0.00027701,15]
[342154879,1731513047872,-168.023,0.0002772,5]
[342154880,1731513047881,-300.0,0.000278,2]
[342154881,1731513047891,-2000.0,0.00028,7]
[342154882,1731513047900,-500.0,0.00028,26]
[342154883,1731513047912,-177.89,0.00028,2]
[342154884,1731513047922,-160.0,0.00028035,5]
[342154885,1731513047931,-660.57499591,0.00028085,2]
[342154886,1731513047941,-300.0,0.000282,2]
[342154887,1731513047950,-153.0,0.00028219,30]
[342154888,1731513047959,-153.0,0.00028219,30]
[342154889,1731513047969,-153.0,0.00028219,30]
[342154890,1731513047978,-153.0,0.00028219,30]
[342154891,1731513047987,-153.0,0.00028219,30]
[342154892,1731513047997,-153.0,0.00028219,30]
[342154893,1731513048006,-153.0,0.00028219,30]
[342154894,1731513048016,-153.0,0.00028219,30]
[342154895,1731513048025,-153.0,0.00028219,30]
[342154896,1731513048035,-153.0,0.00028219,30]
[342154897,1731513048045,-153.0,0.00028219,30]
[342154898,1731513048054,-153.0,0.00028219,30]
[342154899,1731513048064,-153.0,0.00028219,30]
[342154900,1731513048074,-153.0,0.00028219,30]
[342154901,1731513048087,-153.0,0.00028219,30]
[342154902,1731513048097,-153.0,0.00028219,30]
[342154903,1731513048107,-153.0,0.00028219,30]
[342154904,1731513048117,-153.0,0.00028219,30]
[342154905,1731513048127,-168.021,0.0002838,17]
[342154906,1731513048136,-303.9227174,0.00028493,30]
[342154907,1731513048146,-153.0,0.00028493,30]
[342154908,1731513048156,-303.0369346,0.00028493,30]
[342154909,1731513048166,-415.294604,0.00028493,30]
[342154910,1731513048176,-403.5298767,0.00028493,30]
[342154911,1731513048186,-303.9227174,0.00028493,30]
[342154912,1731513048195,-212.1920262,0.00028493,30]
[342154913,1731513048205,-212.1920262,0.00028493,30]
[342154914,1731513048214,-300.0,0.000285,2]
[342154915,1731513048223,-500.0,0.000285,2]
[342154916,1731513048233,-152.35,0.000286,31]
[342154917,1731513048242,-152.35,0.000286,31]
[342154918,1731513048252,-152.35,0.000286,31]
[342154919,1731513048262,-152.35,0.000286,31]
[342154920,1731513048271,-294.0,0.00028756,2]
[342154921,1731513048281,-500.0,0.00028767,7]
[342154922,1731513048291,-600.0,0.000288,2]
[342154923,1731513048300,-300.0,0.000288,2]
[342154924,1731513048310,-500.0,0.00028877,7]
[342154925,1731513048320,-294.0,0.00028997,2]
[342154926,1731513048330,-500.0,0.00029,29]
[342154927,1731513048342,-500.0,0.00029,2]
[342154928,1731513048352,-3000.0,0.00029026,5]
[342154929,1731513048362,-168.051,0.0002904,12]
[342154930,1731513048371,-660.57499591,0.00029098,2]
[342154931,1731513048381,-600.0,0.000291,2]
[342154932,1731513048391,-232.0,0.0002912,25]
[342154933,1731513048400,-160.0,0.00029146,6]
[342154934,1731513048410,-300.0,0.000292,2]
[342154935,1731513048419,-12274.79207436,0.00029231,2]
[342154936,1731513048428,-151.0,0.00029311,7]
[342154937,1731513048438,-1448.91732123,0.000294,30]
[342154938,1731513048448,-600.0,0.000294,2]
[342154939,1731513048457,-396.9502599,0.00029425,30]
[342154940,1731513048467,-300.0,0.000295,2]
[342154941,1731513048477,-186.0,0.000295,2]
[342154942,1731513048486,-248.0,0.000295,2]
[342154943,1731513048495,-150.0,0.000295,2]
[342154944,1731513048505,-500.0,0.000295,2]
[342154945,1731513048515,-500.0,0.00029589,10]
[342154946,1731513048524,-600.0,0.000297,2]
[342154947,1731513048534,-152.35,0.000297,31]
[342154948,1731513048543,-152.35,0.000297,31]
[342154949,1731513048552,-152.35,0.000297,31]
[342154950,1731513048562,-152.35,0.000297,31]
[342154951,1731513048571,-169.082,0.000297,27]
[342154952,1731513048583,-500.0,0.00029707,11]
[342154953,1731513048596,-500.0,0.00029707,11]
[342154954,1731513048606,-1000.0,0.00029729,2]
[342154955,1731513048615,-1000.0,0.00029729,2]
[342154956,1731513048624,-1000.0,0.00029777,2]
[342154957,1731513048634,-300.0,0.000298,2]
[342154958,1731513048644,-1000.0,0.00029804,2]
[342154959,1731513048653,-1000.0,0.00029819,2]
[342154960,1731513048663,-1000.0,0.00029841,2]
[342154961,1731513048673,-1000.0,0.00029851,2]
[342154962,1731513048682,-1000.0,0.00029862,2]
[342154963,1731513048693,-229.20795036,0.00029872,2]
[342154964,1731513048706,-1000.0,0.00029908,2]
[342154965,1731513048716,-1000.0,0.00029942,2]
[342154966,1731513048725,-303.25974416,0.00029942,2]
[342154967,1731513048735,-1000.0,0.0002995,2]
[342154968,1731513048747,-150.0,0.00029986,2]
[342154969,1731513048756,-1000.0,0.00029986,2]
[342154970,1731513048767,-172.6912217,0.0002999,2]
[342154971,1731513048904,-2224.57970636,0.0002999,2]
[342154972,1731513048915,-151.0,0.00029991,7]
[342154973,1731513048926,-151.0,0.00029991,7]
[342154974,1731513048936,-75366.07047701,0.00029999,2]
[342154975,1731513048946,-59353.2605779,0.0003,3]
[342154976,1731513048957,-2476.1056822,0.0003,2]
[342154977,1731513048967,-603.06519453,0.0003,20]
[342154978,1731513048976,-7065.74424745,0.0003,2]
[342154979,1731513048987,-12849.12256447,0.0003,2]
[342154980,1731513048997,-5274.0,0.0003,2]
[342154981,1731513049008,-500.0,0.0003,10]
[342154982,1731513049018,-296.0,0.0003,30]
[342154983,1731513049028,-565.92222667,0.0003,15]
[342154984,1731513049039,-488.0,0.0003,30]
[342154985,1731513049050,-488.0,0.0003,30]
[342154986,1731513049061,-488.0,0.0003,30]
[342154987,1731513049071,-411.98113626,0.0003,30]
[342154988,1731513049090,-13013.88435225,0.0003,60]
[342154989,1731513049100,-900.0,0.0003,30]
[342154990,1731513049115,-1251.44836,0.0003,120]
[342154991,1731513049125,-4961.94090338,0.0003,120]
[342154992,1731513049141,-200.0,0.0003,30]
[342154993,1731513049150,-151.0,0.0003,120]
[342154994,1731513049160,-151.0,0.0003,120]
[342154995,1731513049170,-163.0,0.0003,2]
[342154996,1731513049180,-596.0,0.0003,2]
[342154997,1731513049192,-159.0,0.0003,2]
[342154998,1731513049203,-151.0,0.0003,7]
[342154999,1731513049215,-281.929055,0.0003,7]
[342155000,1731513049226,-281.929055,0.0003,7]
[342155001,1731513049236,-151.0,0.0003,7]
[342155002,1731513049247,-1141.21578215,0.0003,2]
[342155003,1731513049257,-151.0,0.0003,7]
[342155004,1731513049267,-151.0,0.0003,7]
[342155005,1731513049277,-151.0,0.0003,7]
[342155006,1731513049288,-151.0,0.0003,120]
[342155007,1731513049298,-151.0,0.0003,7]
[342155008,1731513049307,-151.0,0.0003,7]
[342155009,1731513049317,-151.0,0.0003,7]
[342155010,1731513049327,-251.1845,0.0003,2]
[342155011,1731513049344,-196.46978586,0.0003,3]
[342155012,1731513049354,-299.96,0.0003,3]
[342155013,1731513049363,-299.96,0.0003,3]
[342155014,1731513049374,-299.96,0.0003,3]
[342155015,1731513049383,-500.0,0.0003,3]
[342155016,1731513049392,-150.02,0.0003,3]
[342155017,1731513049401,-150.02,0.0003,3]
[342155018,1731513049410,-925.177212,0.0003,2]
[342155019,1731513049419,-1000.6294,0.0003,2]
[342155020,1731513049428,-1000.6294,0.0003,2]
[342155021,1731513049438,-259.12470435,0.0003,3]
[342155022,1731513049448,-150.02,0.0003,3]
[342155023,1731513049458,-150.02,0.0003,2]
[342155024,1731513049468,-500.0,0.0003,3]
[342155025,1731513049478,-297.65938785,0.0003,3]
[342155026,1731513049487,-303.00000303,0.0003,2]
[342155027,1731513049497,-500.0,0.0003,3]
[342155028,1731513049507,-150.02,0.0003,2]
[342155029,1731513049516,-500.0,0.0003,3]
[342155030,1731513049527,-205.0,0.0003,2]
[342155031,1731513049537,-303.00000303,0.0003,2]
[342155032,1731513049546,-177.89,0.0003,2]
[342155033,1731513049556,-600.0,0.0003,2]
[342155034,1731513049565,-274.14705621,0.0003,2]
[342155035,1731513049575,-766.26524116,0.00030008,2]
[342155036,1731513049592,-1381.3224241,0.00030042,21]
[342155037,1731513049602,-500.0,0.00030062,2]
[342155038,1731513049611,-5393.6898547,0.000301,3]
[342155039,1731513049621,-660.57499591,0.00030111,2]
[342155040,1731513049631,-151.0,0.00030125,7]
[342155041,1731513049641,-151.0,0.00030125,7]
[342155042,1731513049651,-151.0,0.00030125,7]
[342155043,1731513049660,-151.0,0.00030125,7]
[342155044,1731513049670,-151.0,0.00030125,7]
[342155045,1731513049680,-151.0,0.00030125,7]
[342155046,1731513049691,-151.0,0.00030125,7]
[342155047,1731513049701,-151.0,0.00030125,7]
[342155048,1731513049713,-151.0,0.00030125,7]
[342155049,1731513049725,-151.0,0.00030125,7]
[342155050,1731513049735,-151.0,0.00030125,7]
[342155051,1731513049745,-151.0,0.00030125,7]
[342155052,1731513049755,-151.0,0.00030125,7]
[342155053,1731513049765,-151.0,0.00030125,7]
[342155054,1731513049775,-251.674167,0.00030125,7]
[342155055,1731513049786,-571.318183,0.00030125,7]
[342155056,1731513049797,-571.318183,0.00030125,7]
[342155057,1731513049807,-151.0,0.00030125,7]
[342155058,1731513049817,-173.925541,0.00030125,7]
[342155059,1731513049828,-156.379277,0.00030125,7]
[342155060,1731513049844,-156.379277,0.00030125,7]
[342155061,1731513049853,-600.0,0.00030136,2]
[342155062,1731513049863,-600.0,0.00030136,2]
[342155063,1731513049873,-600.0,0.00030136,2]
[342155064,1731513049883,-600.0,0.00030136,2]
[342155065,1731513049893,-600.0,0.00030136,2]
[342155066,1731513049903,-650.87581621,0.00030136,2]
[342155067,1731513049913,-151.0,0.00030136,7]
[342155068,1731513049922,-151.0,0.00030136,7]
[342155069,1731513049931,-155.915411,0.00030136,7]
[342155070,1731513049941,-151.0,0.00030136,7]
[342155071,1731513049951,-151.0,0.00030136,7]
[342155072,1731513049961,-151.0,0.00030136,7]
[342155073,1731513049970,-151.0,0.00030136,7]
[342155074,1731513049980,-270.445104,0.00030136,7]
[342155075,1731513049990,-270.445104,0.00030136,7]
[342155076,1731513050000,-151.36632,0.00030136,7]
[342155077,1731513050010,-151.0,0.00030136,7]
[342155078,1731513050019,-151.0,0.00030136,7]
[342155079,1731513050029,-281.929055,0.00030136,7]
[342155080,1731513050039,-281.929055,0.00030136,7]
[342155081,1731513050049,-156.379277,0.00030136,7]
[342155082,1731513050059,-156.379277,0.00030136,7]
[342155083,1731513050068,-151.0,0.00030136,7]
[342155084,1731513050078,-151.0,0.00030136,7]
[342155085,1731513050092,-151.0,0.00030136,7]
[342155086,1731513050102,-151.0,0.00030136,7]
[342155087,1731513050111,-151.0,0.00030136,7]
[342155088,1731513050121,-151.0,0.00030136,7]
[342155089,1731513050131,-152.538338,0.00030136,7]
[342155090,1731513050140,-924.805177,0.00030136,7]
[342155091,1731513050149,-281.520779,0.00030136,7]
[342155092,1731513050159,-924.805177,0.00030136,7]
[342155093,1731513050168,-281.520779,0.00030136,7]
[342155094,1731513050177,-151.0,0.00030136,7]
[342155095,1731513050187,-151.0,0.00030136,7]
[342155096,1731513050196,-151.0,0.00030136,7]
[342155097,1731513050205,-151.0,0.00030136,7]
[342155098,1731513050214,-151.0,0.00030136,3]
[342155099,1731513050224,-151.0,0.00030136,7]
[342155100,1731513050233,-151.0,0.00030136,7]
[342155101,1731513050242,-151.0,0.00030136,7]
[342155102,1731513050251,-151.0,0.00030136,7]
[342155103,1731513050261,-151.0,0.00030136,7]
[342155104,1731513050270,-151.0,0.00030136,7]
[342155105,1731513050279,-151.0,0.00030136,7]
[342155106,1731513050288,-504.576688,0.00030136,7]
[342155107,1731513050297,-504.576688,0.00030136,7]
[342155108,1731513050306,-725.138914,0.00030136,7]
[342155109,1731513050315,-725.138914,0.00030136,7]
[342155110,1731513050325,-420.173848,0.00030136,7]
[342155111,1731513050338,-151.0,0.00030136,7]
[342155112,1731513050347,-420.173848,0.00030136,7]
[342155113,1731513050356,-710.175086,0.00030136,7]
[342155114,1731513050365,-710.175086,0.00030136,7]
[342155115,1731513050375,-161.740295,0.00030136,7]
[342155116,1731513050383,-161.740295,0.00030136,7]
[342155117,1731513050394,-151.0,0.00030136,7]
[342155118,1731513050404,-389.65558,0.00030136,7]
[342155119,1731513050414,-389.65558,0.00030136,7]
[342155120,1731513050425,-1352.695253,0.00030136,7]
[342155121,1731513050434,-1352.695253,0.00030136,7]
[342155122,1731513050445,-481.576599,0.00030136,7]
[342155123,1731513050455,-481.576599,0.00030136,7]
[342155124,1731513050465,-886.752863,0.00030136,7]
[342155125,1731513050474,-886.752863,0.00030136,7]
[342155126,1731513050484,-151.0,0.00030136,7]
[342155127,1731513050493,-153.38799,0.00030136,7]
[342155128,1731513050503,-151.0,0.00030136,7]
[342155129,1731513050513,-635.791266,0.00030136,7]
[342155130,1731513050522,-286.473888,0.00030136,7]
[342155131,1731513050532,-286.473888,0.00030136,7]
[342155132,1731513050542,-635.791266,0.00030136,7]
[342155133,1731513050551,-13721.73,0.00030136,120]
[342155134,1731513050561,-13721.73,0.00030136,120]
[342155135,1731513050571,-13721.73,0.00030136,120]
[342155136,1731513050581,-13721.73,0.00030136,120]
[342155137,1731513050595,-13721.73,0.00030136,120]
[342155138,1731513050604,-13721.73,0.00030136,120]
[342155139,1731513050613,-13721.73,0.00030136,120]
[342155140,1731513050622,-13721.73,0.00030136,120]
[342155141,1731513050632,-13721.73,0.00030136,120]
[342155142,1731513050641,-13721.73,0.00030136,120]
[342155143,1731513050651,-13721.73,0.00030136,120]
[342155144,1731513050660,-13721.73,0.00030136,120]
[342155145,1731513050669,-13721.73,0.00030136,120]
[342155146,1731513050679,-13721.73,0.00030136,120]
[342155147,1731513050688,-13721.73,0.00030136,120]
[342155148,1731513050702,-13721.73,0.00030136,120]
[342155149,1731513050711,-13721.73,0.00030136,120]
[342155150,1731513050721,-13721.73,0.00030136,120]
[342155151,1731513050731,-13721.73,0.00030136,120]
[342155152,1731513050741,-13721.73,0.00030136,120]
[342155153,1731513050750,-13721.73,0.00030136,120]
[342155154,1731513050759,-13721.73,0.00030136,120]
[342155155,1731513050770,-13721.73,0.00030136,120]
[342155156,1731513050779,-13721.7605606,0.00030136,120]
[342155157,1731513050788,-996.444101,0.00030136,7]
[342155158,1731513050797,-996.444101,0.00030136,7]
[342155159,1731513050807,-151.0,0.00030136,7]
[342155160,1731513050816,-1149.612736,0.00030136,7]
[342155161,1731513050825,-1322.580326,0.00030136,7]
[342155162,1731513050840,-151.0,0.00030136,7]
[342155163,1731513050849,-1149.612736,0.00030136,7]
[342155164,1731513050858,-1322.580326,0.00030136,7]
[342155165,1731513050867,-151.0,0.00030136,7]
[342155166,1731513050877,-2568.008988,0.00030136,7]
[342155167,1731513050886,-296.600387,0.00030136,7]
[342155168,1731513050895,-2568.008988,0.00030136,7]
[342155169,1731513050904,-151.0,0.00030136,7]
[342155170,1731513050913,-56132.1550723,0.00030137,10]
[342155171,1731513050923,-1448.137,0.00030137,90]
[342155172,1731513050933,-151.788671,0.00030137,7]
[342155173,1731513050942,-151.0,0.00030137,7]
[342155174,1731513050951,-270.445104,0.00030137,7]
[342155175,1731513050960,-270.445104,0.00030137,7]
[342155176,1731513050969,-151.0,0.00030137,7]
[342155177,1731513050979,-500.0,0.00030137,3]
[342155178,1731513050987,-150.02,0.00030137,2]
[342155179,1731513050996,-886.752863,0.00030137,7]
[342155180,1731513051005,-886.752863,0.00030137,7]
[342155181,1731513051015,-635.791266,0.00030137,7]
[342155182,1731513051024,-286.473888,0.00030137,7]
[342155183,1731513051033,-286.473888,0.00030137,7]
[342155184,1731513051042,-635.791266,0.00030137,7]
[342155185,1731513051051,-996.444101,0.00030137,7]
[342155186,1731513051061,-996.444101,0.00030137,7]
[342155187,1731513051071,-151.0,0.00030137,7]
[342155188,1731513051080,-1322.580326,0.00030137,7]
[342155189,1731513051093,-1322.580326,0.00030137,7]
[342155190,1731513051107,-151.0,0.00030137,7]
[342155191,1731513051116,-571.318183,0.00030142,7]
[342155192,1731513051125,-571.318183,0.00030142,7]
[342155193,1731513051134,-571.318183,0.00030142,7]
[342155194,1731513051143,-571.318183,0.00030142,7]
[342155195,1731513051153,-571.318183,0.00030142,7]
[342155196,1731513051163,-571.318183,0.00030142,7]
[342155197,1731513051172,-571.318183,0.00030142,7]
[342155198,1731513051182,-571.318183,0.00030142,7]
[342155199,1731513051192,-571.318183,0.00030142,7]
[342155200,1731513051201,-571.318183,0.00030142,7]
[342155201,1731513051211,-571.318183,0.00030142,7]
[342155202,1731513051220,-571.318183,0.00030142,7]
[342155203,1731513051230,-571.318183,0.00030142,7]
[342155204,1731513051239,-571.318183,0.00030142,7]
[342155205,1731513051249,-571.318183,0.00030142,7]
[342155206,1731513051258,-571.318183,0.00030142,7]
[342155207,1731513051267,-571.318183,0.00030142,7]
[342155208,1731513051277,-571.318176,0.00030142,7]
[342155209,1731513051287,-151.0,0.00030142,7]
[342155210,1731513051296,-151.0,0.00030142,7]
[342155211,1731513051305,-151.0,0.00030142,7]
[342155212,1731513051314,-157.012918,0.00030142,7]